bitfinex-derivatives/quotes_SOLF0:USTF0_20251101
["timestamp","ask_amount","ask_price","bid_price","bid_amount"]
[1762036750668,7.5818,185.58,185.52,0.11]
[1762036751273,7.5818,185.58,185.54,0.11]
[1762036751969,4.8512,185.6,185.54,0.11]
[1762036753976,4.8512,185.6,185.55,4.28521402]
[1762036754179,4.8512,185.6,185.52,4.8533]
[1762036754180,7.5812,185.6,185.57,0.11]
[1762036759290,2.73,185.62,185.59,0.11]
[1762036759482,2.73,185.65,185.59,0.11]
[1762036760681,2.73,185.64,185.59,0.11]
[1762036764585,2.73,185.62,185.59,0.11]
[1762036768396,2.73,185.62,185.56,4.3663666]
[1762036768692,2.73,185.62,185.58,0.1]
[1762036769392,2.73,185.6,185.58,0.1]
[1762036770582,2.73,185.6,185.57,4.26637933]
[1762036770896,2.73,185.59,185.54,0.1]
[1762036771092,2.73,185.59,185.54,4.36836135]
[1762036771301,2.73,185.59,185.54,0.1]
[1762036772092,7.5817,185.59,185.54,0.1]
[1762036772284,2.73,185.58,185.54,0.1]
[1762036772686,7.5819,185.58,185.54,0.1]
[1762036772891,2.73,185.57,185.55,4.98324556]
[1762036773091,2.73,185.57,185.52,4.268258]
[1762036773292,2.73,185.57,185.53,9.35143601]
[1762036773598,2.73,185.57,185.54,4.98317801]
[1762036773898,2.73,185.57,185.55,4.98317801]
[1762036774194,2.73,185.57,185.56,4.98317801]
[1762036776392,4.8519,185.58,185.56,4.98317801]
[1762036776600,7.5819,185.58,185.56,0.1]
[1762036776993,2.73,185.57,185.53,4.36959978]
[1762036777187,2.73,185.57,185.5,4.8538]
[1762036777188,2.73,185.57,185.55,0.1]
[1762036777395,2.73,185.57,185.56,4.98453299]
[1762036792220,2.73,185.57,185.56,9.26668912]
[1762036801836,2.73,185.57,185.56,4.98453299]
[1762036803839,2.73,185.57,185.56,9.25415825]
[1762036804032,2.73,185.57,185.56,9.25415788]
[1762036804541,2.73,185.57,185.56,9.25412266]
[1762036810245,2.73,185.57,185.56,4.98453299]
[1762036814440,4.57148477,185.57,185.56,3.299e-05]
[1762036814743,2.69,185.55,185.51,0.11]
[1762036814942,2.69,185.55,185.52,4.27617141]
[1762036815144,2.69,185.55,185.53,4.27617141]
[1762036815334,2.69,185.55,185.51,0.11]
[1762036815642,2.69,185.55,185.52,4.27647302]
[1762036815838,2.69,185.55,185.53,4.27647302]
[1762036816041,7.5428,185.54,185.51,0.11]
[1762036816247,7.5428,185.54,185.52,4.38539094]
[1762036816446,7.5428,185.54,185.53,4.27539094]
[1762036819648,7.5428,185.54,185.52,0.11]
[1762036820649,2.69,185.53,185.5,0.11]
[1762036820842,2.69,185.53,185.49,9.29189157]
[1762036820843,2.69,185.53,185.51,4.38263577]
[1762036821049,2.69,185.53,185.52,4.27263577]
[1762036821350,2.69,185.53,185.52,4.37263577]
[1762036821549,7.5628,185.54,185.52,4.37263577]
[1762036821739,7.5628,185.54,185.52,0.1]
[1762036821939,2.51796873,185.53,185.52,0.1]
[1762036822143,2.51796873,185.53,185.52,4.37212101]
[1762036824148,2.71,185.53,185.52,4.37212101]
[1762036826550,2.71,185.53,185.52,9.67840698]
[1762036834654,7.5628,185.54,185.52,9.67840698]
[1762036834856,7.5628,185.54,185.53,9.57840698]
[1762036835242,7.5628,185.54,185.53,5.30628597]
[1762036836448,9.40428477,185.54,185.53,5.30628597]
[1762036836648,2.71,185.53,185.5,0.1]
[1762036836849,2.71,185.53,185.51,4.91592126]
[1762036837158,2.71,185.53,185.5,0.1]
[1762036837159,2.71,185.53,185.52,4.91592126]
[1762036838662,2.71,185.53,185.52,5.01592126]
[1762036840157,2.71,185.53,185.52,4.91592126]
[1762036841664,2.71,185.53,185.52,4.9155078]
[1762036844661,2.71,185.53,185.52,9.27631233]
[1762036845362,2.71,185.53,185.52,5.0155078]
[1762036848167,2.71,185.53,185.52,9.27672748]
[1762036849869,2.71,185.53,185.52,9.17672748]
[1762036850765,2.71,185.53,185.52,9.27672748]
[1762036852878,2.71,185.53,185.52,9.27898095]
[1762036860880,6.69428477,185.54,185.52,9.27898095]
[1762036861086,9.40428477,185.54,185.53,9.17898095]
[1762036861383,9.40428477,185.54,185.53,4.9155078]
[1762036864277,9.40428477,185.54,185.53,9.29100966]
[1762036865780,9.40428477,185.54,185.53,9.19100966]
[1762036866877,120.94590792,185.62,185.54,0.09]
[1762036866878,4.8523,185.56,185.54,0.09]
[1762036867085,4.8523,185.56,185.55,9.28058112]
[1762036869182,7.7523,185.56,185.55,9.28058112]
[1762036869384,7.7523,185.56,185.55,9.19058112]
[1762036869586,7.7523,185.56,185.55,9.28058112]
[1762036870382,7.7523,185.56,185.55,9.19058112]
[1762036870879,7.7523,185.56,185.55,7.8e-06]
[1762036874383,7.7532,185.53,185.51,0.09]
[1762036874582,7.7532,185.53,185.52,4.27592413]
[1762036875295,10.06093943,185.53,185.52,4.27592413]
[1762036875900,10.06093943,185.53,185.51,0.09]
[1762036876085,2.30773943,185.52,185.51,0.09]
[1762036876391,2.30773943,185.52,185.51,4.36646708]
[1762036878794,5.20773943,185.52,185.51,4.27646708]
[1762036878986,5.20773943,185.52,185.51,4.36646708]
[1762036882892,5.20773943,185.52,185.51,9.37219817]
[1762036885189,5.20773943,185.52,185.51,9.28219817]
[1762036885693,5.20773943,185.52,185.51,1.05139817]
[1762036892205,2.69,185.51,185.49,9.39189157]
[1762036892408,2.30773943,185.5,185.49,9.39189157]
[1762036895002,2.30773943,185.5,185.49,10.47189157]
[1762036897810,2.30773943,185.5,185.49,19.81088359]
[1762036900209,2.30773943,185.5,185.49,18.73088359]
[1762036905819,2.30773943,185.5,185.49,13.69380982]
[1762036916533,2.30773943,185.5,185.49,13.69643091]
[1762036918436,2.32409642,185.5,185.49,13.69643091]
[1762036921834,5.09409642,185.5,185.49,13.69643091]
[1762036922031,2.32409642,185.5,185.49,13.69643091]
[1762036927344,2.32415386,185.5,185.49,13.69643091]
[1762036950760,2.32415386,185.5,185.49,14.77643091]
[1762036950957,2.71,185.57,185.5,0.11]
[1762036951158,2.71,185.57,185.52,0.11]
[1762036951459,2.71,185.57,185.53,4.41453934]
[1762036951652,2.71,185.57,185.53,0.11]
[1762036952757,2.71,185.57,185.54,4.22998231]
[1762036952954,7.5625,185.56,185.53,0.11]
[1762036953156,7.5625,185.56,185.54,4.22998247]
[1762036953358,7.5625,185.56,185.53,0.11]
[1762036953561,7.5625,185.56,185.54,4.22875553]
[1762036953761,7.5625,185.56,185.53,0.11]
[1762036953961,7.5625,185.56,185.54,4.22875553]
[1762036954164,7.5625,185.56,185.53,0.11]
[1762036954359,7.5625,185.56,185.54,4.22776614]
[1762036954552,7.5625,185.56,185.54,0.11]
[1762036954863,2.71,185.56,185.54,0.11]
[1762036955162,4.8518,185.58,185.54,0.11]
[1762036955163,2.71,185.57,185.54,0.11]
[1762036955552,2.71,185.57,185.55,0.11]
[1762036955759,4.8518,185.58,185.55,0.11]
[1762036955960,2.71,185.59,185.56,1.84282896]
[1762036956164,2.71,185.59,185.56,1.95282896]
[1762036956464,2.71,185.59,185.57,0.11]
[1762036962865,2.30019396,185.58,185.57,0.11]
[1762036963869,2.29995835,185.58,185.57,0.11]
[1762036965561,5.24995835,185.58,185.57,0.11]
[1762036967058,2.95,185.58,185.57,0.11]
[1762036969769,2.95,185.58,185.54,1.84282896]
[1762036969972,7.8012,185.6,185.57,0.1]
[1762036970179,2.95,185.59,185.57,0.1]
[1762036978878,2.95,185.59,185.56,1.94282896]
[1762036979077,2.95,185.58,185.54,1.84282896]
[1762036979274,2.95,185.58,185.54,1.94282896]
[1762036979966,2.95,185.57,185.54,1.94282896]
[1762036980165,2.95,185.57,185.54,0.1]
[1762036982176,2.95,185.57,185.53,0.1]
[1762036982480,2.95,185.56,185.52,1.84282896]
[1762036982773,2.95,185.56,185.52,1.94282896]
[1762036983170,2.95,185.56,185.52,0.1]
[1762036983579,2.95,185.55,185.5,4.24047959]
[1762036983878,2.95,185.55,185.51,4.24047959]
[1762036984075,2.95,185.55,185.5,0.1]
[1762036984280,2.95,185.55,185.51,4.34076483]
[1762036984578,2.95,185.55,185.51,0.1]
[1762036988079,2.95,185.55,185.52,4.24208438]
[1762036988290,2.95,185.55,185.51,0.1]
[1762036988481,2.95,185.55,185.52,4.24261472]
[1762036988682,2.95,185.55,185.51,0.1]
[1762036988886,2.95,185.55,185.52,4.34261431]
[1762036989084,2.95,185.55,185.52,0.1]
[1762036989286,7.7917,185.58,185.52,0.1]
[1762036989581,2.94,185.57,185.54,0.1]
[1762036989780,2.94,185.57,185.55,4.34271102]
[1762036989969,2.94,185.57,185.56,4.24271102]
[1762036990881,2.94,185.59,185.57,0.1]
[1762036991079,2.94,185.61,185.57,0.1]
[1762036991268,2.94,185.61,185.52,7.92866727]
[1762036991269,2.94,185.61,185.58,4.34119089]
[1762036991580,2.94,185.61,185.59,4.24119089]
[1762036991781,2.94,185.61,185.58,0.1]
[1762036992482,2.94,185.61,185.59,4.2389126]
[1762036992782,2.94,185.61,185.58,0.1]
[1762036992985,2.94,185.61,185.59,4.2389126]
[1762036993184,2.94,185.61,185.58,0.1]
[1762036993385,2.94,185.61,185.59,4.23925515]
[1762036993587,2.94,185.61,185.58,0.1]
[1762036993885,2.94,185.61,185.59,4.23861685]
[1762036994086,2.94,185.61,185.58,0.1]
[1762036994289,2.94,185.61,185.59,4.23942675]
[1762036994480,2.94,185.61,185.58,0.1]
[1762036994680,2.94,185.61,185.59,4.23888752]
[1762036994882,2.94,185.61,185.58,0.1]
[1762036995090,2.94,185.61,185.59,4.23885319]
[1762036995386,2.94,185.61,185.58,0.1]
[1762036995586,2.94,185.61,185.59,4.23925388]
[1762036995887,2.94,185.61,185.55,0.1]
[1762036996191,2.94,185.61,185.56,4.33964648]
[1762036996381,2.94,185.61,185.57,4.23964648]
[1762036996581,2.94,185.61,185.58,4.23964648]
[1762036996780,2.94,185.61,185.57,0.1]
[1762036997090,5.23330016,185.6,185.58,4.24004632]
[1762036997382,5.23330016,185.59,185.57,0.1]
[1762036997586,2.94,185.59,185.58,4.24016826]
[1762036997779,5.23330428,185.59,185.58,4.24016826]
[1762036998689,5.23324223,185.59,185.58,4.24016826]
[1762037003792,5.23324223,185.59,185.55,0.1]
[1762037003993,2.29324223,185.58,185.57,0.1]
[1762037004194,2.29324223,185.58,185.57,4.34051932]
[1762037006195,5.05324223,185.58,185.57,4.34051932]
[1762037015393,5.05324223,185.58,185.57,4.24051932]
[1762037016306,5.05324223,185.58,185.57,4.34051932]
[1762037020194,5.05324223,185.58,185.57,4.24051932]
[1762037020395,5.05324223,185.58,185.54,0.1]
[1762037020597,2.29324223,185.57,185.55,4.26509592]
[1762037020796,2.29324223,185.56,185.55,0.1]
[1762037020995,2.29324223,185.56,185.55,4.26494475]
[1762037024105,2.83,185.62,185.56,0.1]
[1762037024303,2.83,185.62,185.58,0.1]
[1762037024503,2.83,185.62,185.59,4.26494475]
[1762037024799,2.83,185.62,185.59,0.1]
[1762037025901,2.83,185.69,185.61,0.1]
[1762037026205,2.83,185.69,185.63,0.1]
[1762037026390,2.83,185.69,185.64,4.26222164]
[1762037026593,2.83,185.69,185.64,0.1]
[1762037027001,7.6789,185.69,185.64,0.1]
[1762037027207,2.83,185.68,185.64,0.1]
[1762037036913,2.83,185.68,185.65,0.1]
[1762037040419,2.83,185.69,185.65,0.1]
[1762037042920,2.83,185.69,185.66,0.1]
[1762037044215,2.83,185.69,185.65,4.18946179]
[1762037044415,2.83,185.69,185.65,0.1]
[1762037044918,2.83,185.69,185.65,4.28946179]
[1762037045119,2.83,185.69,185.65,0.1]
[1762037049310,4.66917358,185.69,185.65,0.1]
[1762037049622,2.76,185.68,185.65,0.1]
[1762037051312,2.76,185.69,185.65,0.1]
[1762037051512,109.42573007,185.78,185.61,6.89128505]
[1762037051513,2.76,185.72,185.66,4.27946179]
[1762037051720,2.76,185.72,185.66,0.09]
[1762037052314,2.76,185.72,185.67,0.09]
[1762037053324,2.76,185.72,185.67,4.27088621]
[1762037053523,2.76,185.72,185.67,0.09]
[1762037056614,2.76,185.72,185.67,4.18076795]
[1762037056810,16.52090119,185.82,185.66,4.18076795]
[1762037056811,1.83917358,185.71,185.66,4.18076795]
[1762037057011,1.83917358,185.71,185.62,5.14211147]
[1762037057012,5.04437461,185.7,185.63,4.18076795]
[1762037057215,2.76,185.68,185.63,4.18076795]
[1762037057413,2.76,185.66,185.63,4.18076795]
[1762037057617,2.76,185.66,185.63,4.27076795]
[1762037057919,2.76,185.66,185.63,0.09]
[1762037058325,2.76,185.66,185.63,4.27076795]
[1762037059520,2.76,185.66,185.64,4.18076795]
[1762037060421,2.76,185.66,185.65,4.18076795]
[1762037060624,2.76,185.66,185.64,4.18076795]
[1762037060824,2.76,185.64,185.62,4.18076795]
[1762037061116,2.76,185.64,185.61,0.09]
[1762037061117,2.76,185.64,185.63,4.18076795]
[1762037062718,5.04733148,185.64,185.63,4.18076795]
[1762037062918,2.76,185.64,185.63,4.18076795]
[1762037063330,5.04808989,185.64,185.63,4.18076795]
[1762037063523,2.76,185.64,185.63,4.18076795]
[1762037065119,5.04892624,185.64,185.63,4.18076795]
[1762037067221,2.28892624,185.64,185.63,4.28076795]
[1762037067624,5.16892624,185.64,185.63,4.18076795]
[1762037069022,2.28892624,185.64,185.63,4.28076795]
[1762037077127,2.28892624,185.64,185.63,9.30865113]
[1762037077533,2.28892624,185.64,185.63,9.3519924]
[1762037078532,5.23892624,185.64,185.63,9.25242573]
[1762037079931,2.28892624,185.64,185.63,9.35242573]
[1762037081737,2.28892624,185.64,185.63,4.32380003]
[1762037087143,2.95,185.68,185.63,4.32380003]
[1762037087343,2.95,185.68,185.65,5.02486885]
[1762037087640,2.95,185.68,185.66,4.22380003]
[1762037087840,2.95,185.68,185.67,4.22380003]
[1762037095354,2.95,185.69,185.67,4.32380003]
[1762037095556,2.95,185.69,185.68,4.22380003]
[1762037099353,2.95,185.7,185.68,4.32380003]
[1762037099555,2.95,185.7,185.69,4.22380003]
[1762037104767,4.78917358,185.7,185.69,3e-08]
[1762037104958,2.95,185.68,185.64,5.12486885]
[1762037105262,2.95,185.68,185.64,0.1]
[1762037106264,2.95,185.68,185.64,5.12930128]
[1762037106567,2.95,185.68,185.65,0.1]
[1762037106857,7.7993,185.68,185.65,0.1]
[1762037107051,2.71,185.67,185.64,5.0292846]
[1762037107249,4.54917358,185.67,185.61,5.0292846]
[1762037107451,2.71,185.66,185.62,0.1]
[1762037108967,7.5599,185.66,185.62,0.1]
[1762037109257,2.71,185.65,185.62,0.1]
[1762037111863,7.5591,185.68,185.62,0.1]
[1762037112162,2.71,185.68,185.62,0.1]
[1762037112358,2.71,185.73,185.64,0.1]
[1762037112564,2.71,185.73,185.65,0.1]
[1762037113968,2.71,185.71,185.65,5.1292846]
[1762037114160,2.71,185.71,185.66,0.1]
[1762037116867,2.71,185.71,185.67,4.28869579]
[1762037117058,2.71,185.69,185.68,4.18869579]
[1762037117256,2.32017437,185.69,185.68,4.28869579]
[1762037117970,5.03017437,185.69,185.68,4.28869579]
[1762037118167,5.03017437,185.69,185.68,4.18869579]
[1762037118772,2.32017437,185.69,185.68,4.28869579]
[1762037122672,2.71,185.71,185.69,0.1]
[1762037122863,2.71,185.71,185.7,4.18869579]
[1762037124275,2.71,185.71,185.64,5.0292846]
[1762037124276,2.83,185.69,185.64,5.0292846]
[1762037124474,2.83,185.69,185.63,5.0292846]
[1762037124872,2.83,185.69,185.62,5.1292846]
[1762037125371,2.83,185.67,185.62,5.1292846]
[1762037125565,2.83,185.67,185.63,2.84]
[1762037136384,2.83,185.67,185.64,7.06017743]
[1762037136582,2.83,185.67,185.65,4.22017743]
[1762037136782,2.83,185.67,185.64,2.84]
[1762037136783,2.83,185.67,185.66,4.22017743]
[1762037137380,2.83,185.67,185.64,2.84]
[1762037137581,2.83,185.67,185.65,4.22007536]
[1762037137780,2.83,185.67,185.62,2.94]
[1762037137981,2.83,185.67,185.63,7.16007353]
[1762037138184,2.83,185.67,185.64,4.22007353]
[1762037138383,2.83,185.67,185.65,4.22007353]
[1762037138586,2.83,185.67,185.63,2.94]
[1762037138784,2.83,185.67,185.64,4.22034444]
[1762037138977,2.83,185.67,185.65,4.22034444]
[1762037139285,2.93,185.66,185.63,2.94]
[1762037139484,2.93,185.66,185.64,4.22063065]
[1762037139776,2.93,185.66,185.65,4.22063065]
[1762037141685,2.93,185.66,185.65,7.16063065]
[1762037141985,2.93,185.67,185.65,7.16063065]
[1762037142174,2.93,185.67,185.62,2.94]
[1762037142376,2.93,185.67,185.63,7.15990854]
[1762037142675,2.93,185.67,185.64,4.21990854]
[1762037142872,2.93,185.67,185.65,4.21990854]
[1762037143075,2.93,185.67,185.63,2.94]
[1762037143271,2.93,185.67,185.64,4.21975599]
[1762037143486,2.93,185.67,185.65,4.21975599]
[1762037143676,2.93,185.67,185.63,2.94]
[1762037143878,2.93,185.67,185.64,4.21994952]
[1762037144079,2.93,185.67,185.65,4.21994952]
[1762037144387,2.93,185.67,185.63,2.94]
[1762037144586,2.93,185.67,185.64,4.21992025]
[1762037144787,2.93,185.67,185.65,4.21992025]
[1762037144989,2.93,185.67,185.63,2.94]
[1762037145184,2.93,185.67,185.64,7.15988765]
[1762037145383,2.93,185.67,185.65,4.21988765]
[1762037145583,2.93,185.67,185.64,2.94]
[1762037145884,2.93,185.67,185.65,4.22089936]
[1762037146086,2.93,185.67,185.64,2.94]
[1762037146283,2.93,185.67,185.65,4.22137466]
[1762037146487,2.93,185.67,185.64,2.94]
[1762037146689,2.93,185.67,185.65,4.22169401]
[1762037146889,2.93,185.67,185.64,2.94]
[1762037147090,2.93,185.67,185.65,4.22169248]
[1762037147390,2.93,185.67,185.64,2.94]
[1762037147589,2.93,185.67,185.65,4.2217909]
[1762037147888,2.93,185.67,185.64,2.94]
[1762037148090,2.93,185.67,185.65,4.2217953]
[1762037148393,2.93,185.67,185.64,2.94]
[1762037148596,2.93,185.67,185.65,4.2217626]
[1762037148794,2.93,185.67,185.64,2.94]
[1762037149092,2.93,185.67,185.65,4.22176429]
[1762037149293,2.93,185.67,185.64,2.94]
[1762037149490,2.93,185.67,185.65,4.22174762]
[1762037149693,2.93,185.67,185.64,2.94]
[1762037149899,2.93,185.67,185.65,4.22195502]
[1762037150195,2.93,185.67,185.64,2.94]
[1762037150385,2.93,185.67,185.65,4.22203311]
[1762037150586,2.93,185.67,185.64,2.94]
[1762037150885,2.93,185.67,185.65,4.22203308]
[1762037151188,2.93,185.67,185.64,2.94]
[1762037151482,2.93,185.67,185.65,4.22211258]
[1762037151687,2.93,185.67,185.64,2.94]
[1762037151982,2.93,185.67,185.65,4.22249107]
[1762037152183,2.93,185.67,185.64,2.94]
[1762037152399,2.93,185.67,185.65,4.22265571]
[1762037152695,2.93,185.67,185.64,2.94]
[1762037152896,2.93,185.67,185.65,4.22286292]
[1762037153195,2.93,185.67,185.64,2.94]
[1762037153395,2.93,185.67,185.65,4.22371998]
[1762037153700,2.93,185.67,185.64,2.94]
[1762037153898,2.93,185.67,185.65,4.2236193]
[1762037154097,2.93,185.67,185.64,2.94]
[1762037154297,2.93,185.67,185.65,4.22370031]
[1762037154496,2.93,185.67,185.64,2.94]
[1762037154800,2.93,185.67,185.65,4.2238057]
[1762037155097,2.93,185.67,185.64,2.94]
[1762037155286,2.93,185.67,185.65,4.22388852]
[1762037155489,2.93,185.67,185.64,2.94]
[1762037155685,2.93,185.67,185.65,4.22388646]
[1762037155899,2.93,185.67,185.66,4.22388646]
[1762037160500,2.93,185.69,185.66,4.22388646]
[1762037160703,2.93,185.69,185.68,2.94]
[1762037161003,2.93,185.69,185.64,2.94]
[1762037161205,2.93,185.69,185.66,2.94]
[1762037161404,2.93,185.69,185.63,5.0292846]
[1762037161405,2.93,185.69,185.67,7.17730339]
[1762037161705,2.93,185.69,185.67,2.94]
[1762037165299,2.93,185.69,185.68,4.2372289]
[1762037172123,4.8486,185.7,185.68,6.9972289]
[1762037172314,7.5281,185.72,185.7,2.76]
[1762037172613,7.5281,185.72,185.71,4.2372289]
[1762037173712,7.5276,185.74,185.72,2.76]
[1762037173915,2.68,185.73,185.71,2.76]
[1762037174115,2.68,185.73,185.68,2.76]
[1762037174310,2.68,185.73,185.7,2.76]
[1762037174516,7.527,185.76,185.72,2.76]
[1762037174715,7.527,185.76,185.73,6.99512284]
[1762037174910,2.68,185.75,185.74,4.23512284]
[1762037176614,2.68,185.77,185.74,6.99512284]
[1762037176814,2.68,185.77,185.74,2.76]
[1762037178618,2.68,185.76,185.74,2.76]
[1762037179207,2.68,185.76,185.72,6.98353813]
[1762037179422,2.68,185.75,185.73,6.98353813]
[1762037179624,2.68,185.75,185.73,2.76]
[1762037181214,2.68,185.75,185.72,4.22124541]
[1762037181215,2.68,185.75,185.68,11.7171594]
[1762037181411,2.69,185.74,185.69,7.07003913]
[1762037181610,2.69,185.74,185.7,4.22003913]
[1762037181919,2.69,185.74,185.66,4.6889748]
[1762037182121,4.8473,185.75,185.68,2.85]
[1762037182321,4.8473,185.75,185.7,2.85]
[1762037182521,7.5373,185.75,185.7,2.85]
[1762037183225,2.69,185.74,185.7,2.85]
[1762037183426,2.69,185.74,185.72,2.85]
[1762037184927,2.69,185.74,185.68,2.85]
[1762037185122,2.69,185.74,185.66,11.7178594]
[1762037185123,2.69,185.73,185.69,7.07063]
[1762037185319,2.69,185.73,185.7,4.22063]
[1762037185518,2.69,185.73,185.69,2.85]
[1762037185820,2.69,185.73,185.7,4.22158223]
[1762037186021,2.69,185.73,185.69,2.85]
[1762037186227,2.69,185.73,185.7,4.22154087]
[1762037186818,2.69,185.72,185.69,2.85]
[1762037187025,2.69,185.72,185.7,4.22150791]
[1762037187326,2.69,185.72,185.69,2.85]
[1762037189433,4.848,185.73,185.69,2.85]
[1762037189730,7.538,185.73,185.69,2.85]
[1762037190132,2.69,185.72,185.69,2.85]
[1762037190333,2.69,185.72,185.7,4.22210057]
[1762037190527,2.69,185.72,185.69,2.85]
[1762037190726,2.69,185.72,185.7,4.23283092]
[1762037190928,2.69,185.72,185.69,2.85]
[1762037191133,2.69,185.72,185.7,7.08283092]
[1762037191434,2.69,185.72,185.7,2.85]
[1762037191634,4.8473,185.75,185.7,2.85]
[1762037191933,7.5373,185.75,185.7,2.85]
[1762037192232,2.69,185.74,185.7,2.85]
[1762037192929,2.69,185.74,185.71,7.08393508]
[1762037193227,9.3757748,185.77,185.71,2.85]
[1762037193431,2.69,185.76,185.73,2.85]
[1762037198836,2.69,185.76,185.74,7.14243897]
[1762037199036,2.69,185.76,185.74,2.91]
[1762037201643,2.69,185.76,185.72,2.91]
[1762037202239,2.69,185.76,185.73,4.23431722]
[1762037202435,4.8468,185.77,185.72,2.91]
[1762037202740,7.6868,185.77,185.74,2.91]
[1762037203144,2.84,185.77,185.74,2.91]
[1762037204739,2.84,185.77,185.75,4.23402916]
[1762037204935,2.84,185.77,185.74,2.91]
[1762037205135,2.84,185.77,185.75,4.23401636]
[1762037205441,2.84,185.77,185.74,2.91]
[1762037205644,2.84,185.77,185.75,7.14375682]
[1762037205838,2.84,185.77,185.75,2.91]
[1762037212948,2.84,185.77,185.76,4.23713875]
[1762037213441,2.84,185.77,185.76,7.14713875]
[1762037213645,2.84,185.78,185.76,7.14713875]
[1762037213840,2.84,185.78,185.76,2.91]
[1762037220149,2.84,185.78,185.77,4.24232691]
[1762037223256,2.84,185.78,185.77,9.33868853]
[1762037232670,2.86,185.81,185.78,2.69]
[1762037232871,2.86,185.81,185.79,9.33868853]
[1762037233071,2.86,185.81,185.8,5.09636162]
[1762037233569,7.7059,185.81,185.8,5.09636162]
[1762037234161,7.7059,185.81,185.8,6.162e-05]
[1762037234572,2.86,185.78,185.75,2.69]
[1762037234872,2.86,185.78,185.76,4.44190176]
[1762037235079,2.86,185.78,185.77,4.44190176]
[1762037246288,2.86,185.78,185.77,9.35688028]
[1762037249878,4.8464,185.79,185.78,2.67]
[1762037250079,4.8464,185.79,185.78,12.02893276]
[1762037250274,4.8464,185.79,185.78,7.587031]
[1762037250479,4.8458,185.81,185.79,2.67]
[1762037250680,4.8458,185.81,185.8,7.587031]
[1762037253283,4.8458,185.81,185.8,11.73448409]
[1762037256190,4.8458,185.81,185.8,7.587031]
[1762037257190,7.5758,185.81,185.8,4.917031]
[1762037257393,4.8458,185.81,185.8,7.587031]
[1762037257780,7.5758,185.81,185.8,4.917031]
[1762037262900,2.87038737,185.84,185.81,2.67]
[1762037263190,2.73,185.86,185.83,2.67]
[1762037263395,2.73,185.86,185.84,4.917031]
[1762037263689,2.73,185.86,185.83,2.67]
[1762037263894,2.73,185.86,185.84,5.13224703]
[1762037264093,4.8446,185.86,185.85,5.13224703]
[1762037264596,7.5746,185.86,185.85,5.13224703]
[1762037267594,4.8449,185.85,185.81,2.67]
[1762037267800,7.5749,185.85,185.83,2.67]
[1762037267999,7.5749,185.85,185.84,5.12512555]
[1762037273508,7.5742,185.87,185.85,2.67]
[1762037273709,7.5742,185.87,185.86,5.12512555]
[1762037281610,4.8442,185.87,185.86,7.79512555]
[1762037283316,4.8442,185.87,185.86,2.67]
[1762037284110,4.8442,185.87,185.77,9.8757846]
[1762037284111,2.73,185.85,185.82,2.67]
[1762037284609,7.5746,185.86,185.82,2.67]
[1762037284814,2.73,185.85,185.82,2.67]
[1762037285208,4.8446,185.86,185.82,2.67]
[1762037285408,7.5746,185.86,185.82,2.67]
[1762037290215,7.5746,185.86,185.84,2.76]